[Event "Presidents Day IM-Norm 2024"]
[Site "Santa Clara"]
[Date "2024.02.16"]
[Round "1.1"]
[White "Rodi, Luis Ernesto"]
[Black "Yan, Nathan"]
[Result "1-0"]
[ECO "C78"]
[WhiteElo "2196"]
[BlackElo "2311"]
[Annotator "TA"]
[PlyCount "81"]
[EventDate "2024.02.13"]
[EventType "tourn"]
[EventCountry "USA"]
[SourceTitle "playchess.com"]
[Source "ChessBase"]
[SourceQuality "1"]
[TimeControl "5400+30"]

{[%evp 12,81,54,38,47,44,47,50,39,46,41,28,64,56,68,70,68,54,56,58,65,77,77,57,31,60,85,50,64,73,80,69,69,64,62,72,75,49,83,76,74,107,80,95,101,85,128,121,130,129,112,67,254,256,239,256,520,559,375,333,1739,1458,2854,5210,5954,5364,29979,29970,29985,29986,29986,29987]} 1. e4 {[%emt 0:01:41]} e5 {[%emt 0:08:42]} 2. Nf3 {[%emt 0:00:23]} Nc6 {[%emt 0:00:10]} 3. Bb5 {[%emt 0:00:45]} a6 {[%emt 0:00:13]} 4. Ba4 {[%emt 0:00:10]} Nf6 {[%emt 0:00:07]} 5. O-O {[%emt 0:00:13]} Bc5 {[%emt 0:00:18]} 6. c3 {[%emt 0:00:46]} b5 {[%emt 0:00:07]} 7. Bc2 {[%emt 0:00:21] Threatens to win with d4.} d5 {[%emt 0:00:13]} 8. a4 {[%emt 0:00:49]} dxe4 {[%emt 0:00:13]} (8... Nxe4 $2 9. axb5 Ne7 10. Nxe5 $18) 9. axb5 $1 {[%emt 0:00:08]} Bg4 {[%emt 0:00:07] White is slightly better.} 10. bxc6 {[%emt 0:00:28][%cal Oh2h3]} exf3 {[%emt 0:00:09]} 11. gxf3 {[%emt 0:00:11]} Bh3 {[%emt 0:01:00]} 12. Re1 $1 {[%emt 0:00:16][%cal Od2d4] aiming for d4!} O-O {[%emt 0:00:43]} 13. Ra5 $1 {[%emt 0:00:17]} Qd6 {[%emt 0:00:34] ...e4 is the strong threat.} 14. b4 $1 {[%emt 0:00:08]} Bxf2+ {[%emt 0:01:09]} 15. Kxf2 {[%emt 0:00:06]} e4 {[%emt 0:00:10]} 16. Kg1 {[%emt 0:00:08]} (16. Bxe4 Rae8 (16... Qxh2+ 17. Ke3 $18) 17. d3 Nxe4+ 18. dxe4 Qxh2+ 19. Ke3 f5) 16... Rae8 {[%emt 0:04:16][%cal Ba8e8,Be8e6,Be6f6][%mdl 32] [#] Strongly threatening ...exf3.} 17. Re3 {[%emt 0:00:15]} (17. fxe4 Bg4 18. e5 (18. Re2 Nxe4 19. b5 Nf2 $19) 18... Bxd1 (18... Rxe5 19. Raxe5 Bxd1 20. Bxd1 $11) 19. exd6 Rxe1+ 20. Kf2 Bxc2 $17) (17. Rxa6 exf3 18. Rf1 Re2 (18... Bxf1 $2 19. Kxf1 Re2 20. Bxh7+ Kxh7 21. Qxe2 $19) (18... Ng4 19. Rf2 Nxf2 20. Qxf3 Qe6 21. Bxh7+ Kxh7 22. Qh5+ Kg8 23. Kxf2 Qe1+ 24. Kf3 Qe2+ 25. Kg3 Qg2+ 26. Kh4 Re4+ 27. Qg4 Qxg4#) 19. Rf2 Qe5 20. Bxh7+ Nxh7 21. d3 Re1+) 17... Nh5 $1 {[%emt 0:03:40]} 18. Rg5 {[%emt 0:00:10] Wards off Qg6} (18. Rxh5 {leads to mate.} Qg6+) (18. Rxe4 $2 f5 19. Bb3+ Kh8 $19) 18... Qh6 {[%emt 0:03:21] [#]} 19. Rg3 {[%emt 0:00:23]} Nxg3 {[%emt 0:01:25]} 20. hxg3 {[%emt 0:00:06]} exf3 {[%emt 0:02:45]} 21. Qxf3 {[%emt 0:00:08]} Re6 {[%emt 0:02:06]} (21... Rxe3 22. dxe3 Re8 23. c4 $16) 22. Bd3 $1 {[%emt 0:00:31]} Rf6 {[%emt 0:05:08]} 23. Qd5 {[%emt 0:01:22]} Rd6 {[%emt 0:01:59]} 24. Qe4 {[%emt 0:00:10]} Re6 {[%emt 0:00:53] [#]} 25. Qh4 {[%emt 0:00:55]} Qxh4 {[%emt 0:02:04]} 26. gxh4 {[%emt 0:00:07] Rxe6 would now be deadly.} Rxe3 {[%emt 0:02:22]} 27. dxe3 {[%emt 0:00:05]} Rd8 {[%emt 1:00:06]} 28. Bc2 {[%emt 0:00:35]} (28. Bxa6 Rd1+ 29. Kf2 Rxc1 $19) 28... Bf5 {[%emt 0:00:00]} 29. Bxf5 {[%emt 0:05:00]} Rd1+ {[%emt 0:00:00]} 30. Kf2 {[%emt 0:00:09]} Rxc1 {[%emt 0:00:00]} 31. Ke2 {[%emt 0:01:06]} g6 $2 {[%emt 0:00:00] Loses the game.} (31... Kf8 $1 $14) 32. Bd3 $18 {[%emt 0:00:08][%cal Oe2d2] Black must now prevent Kd2!} Kf8 {[%emt 0:00:00]} 33. c4 {[%emt 0:12:26][%cal Bc3c4,Bc4c5][%mdl 32] And now Kd2 would win.} Rh1 $2 {[%emt 0:00:00]} (33... Ke7 34. c5 a5) 34. Nc3 {[%emt 0:01:50]} Ke7 {[%emt 0:00:00]} 35. c5 {[%emt 0:00:26]} Rxh4 $2 {[%emt 0:00:00]} (35... Ra1 36. Kd2 Kd8) 36. Bxa6 {[%emt 0:00:26]} Kd8 {[%emt 0:00:00]} 37. Nd5 {[%emt 0:05:56]} Rh5 {[%emt 0:00:00]} 38. e4 {[%emt 0:01:13] White threatens b5 and mate.} Re5 {[%emt 0:00:00]} 39. b5 {[%emt 0:03:40] White mates.} Rxe4+ {[%emt 0:00:00]} 40. Kd3 {[%emt 0:00:12]} Re5 {[%emt 0:06:30]} 41. Kd4 {[%emt 0:00:20] Weighted Error Value: White=0.04 (flawless) /Black=0.36.  Loses game:     	---       	Black=1      Mistake:       	---       	Black=2      Inaccurate:     	White=2     	Black=4      OK:         	White=9     	Black=11     Best:        	White=4     	Black=6      Strong:       	White=5     	Black=1} 1-0

[Event "Presidents Day IM-Norm 2024"]
[Site "Santa Clara"]
[Date "2024.02.16"]
[Round "1.2"]
[White "Bansal, Advay"]
[Black "Yim, Sung Ho"]
[Result "0-1"]
[ECO "C55"]
[WhiteElo "2253"]
[BlackElo "2243"]
[Annotator "TA"]
[PlyCount "66"]
[EventDate "2024.02.13"]
[EventType "tourn"]
[EventCountry "USA"]
[SourceTitle "playchess.com"]
[Source "ChessBase"]
[SourceQuality "1"]
[TimeControl "5400+30"]

{[%evp 15,66,30,28,34,22,20,24,29,31,34,32,7,12,25,29,2,29,-13,-28,-20,-16,-20,-12,-53,-28,-28,-37,-21,-32,-20,-20,-39,-33,-154,-145,-754,-765,-850,-820,-29989,-29990,-29990,-29991,-29991,-29992,-29992,-29993,-29993,-29991,-29991,0,-29993,-29994]} 1. e4 {[%emt 0:00:01]} e5 {[%emt 1:31:00]} 2. Nf3 Nc6 3. Bc4 Nf6 {[%emt 0:00:00]} 4. d3 {[%emt 0:02:08]} h6 5. O-O {[%emt 1:30:51]} d6 {[%emt 0:00:00]} 6. a4 {[%emt 0:00:00]} g6 {[%emt 0:00:00]} 7. Nc3 {[%emt 0:00:00]} Bg7 {[%emt 0:00:00]} 8. h3 {[%emt 0:00:00]} O-O {[%emt 0:00:00]} 9. Be3 {[%emt 0:02:00]} Na5 {[%emt 0:04:00]} 10. Ba2 {[%emt 0:00:00]} c5 {[%emt 0:00:30]} 11. Nd5 {[%emt 0:01:00] White has an edge.} Nxd5 {[%emt 0:00:00]} 12. Bxd5 {[%emt 0:00:00]} Nc6 {[%emt 0:00:00]} 13. c3 {[%emt 0:00:00]} Ne7 14. Ba2 {[%emt 0:01:30]} b6 {[%emt 0:02:00]} 15. d4 {[%emt 0:00:00]} Bb7 {[%emt 0:00:30]} 16. Bb1 {[%emt 0:01:00]} exd4 {[%emt 0:00:00]} 17. cxd4 {[%emt 0:00:00]} f5 {[%emt 0:01:00][%cal Bf7f5,Bf5e4,Be4f3][%mdl 32]} 18. Qb3+ {[%emt 0:01:00]} Kh7 {[%emt 0:00:00]} 19. dxc5 {[%emt 0:00:00]} fxe4 (19... dxc5 {feels hotter.} 20. Bxc5 fxe4 21. Rd1 Qe8) 20. cxd6 $1 {[%emt 0:01:00]} exf3 {[%emt 0:00:00]} 21. dxe7 {[%emt 0:00:00]} Qxe7 {[%emt 0:00:00]} 22. g3 {[%emt 0:00:00]} Qd7 {[%emt 0:00:00]} 23. g4 {[%emt 0:00:00]} (23. Qd3 {simplifies} Qxd3 24. Bxd3 Bxb2 25. Rab1) 23... Rad8 {[%emt 0:00:00] aiming for ...Qe7.} 24. a5 {[%emt 0:00:00] [#]} (24. Re1 $1 $15) 24... Qe7 $1 $17 {[%emt 0:00:00] ...Qh4 is the strong threat.} 25. Qc2 $2 {[%emt 0:00:00][%mdl 8192]} (25. Rd1 $17) 25... Rd6 $19 {[%emt 0:00:00] ( -> ...Qh4). Active counter play!} 26. Rd1 {[%emt 0:00:00]} Rc8 {[%emt 0:00:00]} 27. Qb3 {[%emt 0:00:00] [#]} Qh4 $1 {[%emt 0:00:00]} 28. Bd3 {[%emt 0:00:00] [#]} Rxd3 $1 {[%emt 0:00:00][%mdl 512]} 29. Qxd3 {[%emt 0:00:00]} Qxh3 {[%emt 0:00:00][%csl Gb7,Gf3][%cal Rh3g2]} 30. Qf1 {[%emt 0:00:00]} Qxg4+ {[%emt 0:00:00]} 31. Kh1 {[%emt 0:00:00] White is weak on the light squares} Qh4+ {[%emt 0:00:00]} (31... Bxb2 32. Qg1 Qxg1+ 33. Kxg1 Bxa1 34. Rxa1 $11) 32. Kg1 {[%emt 0:06:00]} Qg4+ 33. Kh1 $1 {[%emt 0:00:00]} Be5 {[%emt 0:00:00] Weighted Error Value: White=0.61/Black=0.26 (precise) .  Loses game:     	White=1     	---        Mistake:       	White=1     	---        Inaccurate:     	White=3     	Black=1      OK:         	White=4     	Black=8      Best:        	White=1     	Black=1      Strong:       	White=1     	Black=1} (33... Bxb2 34. Qg1 Qxg1+ 35. Kxg1 Bxa1 36. Rxa1 $11) 0-1

[Event "Presidents Day IM-Norm 2024"]
[Site "Santa Clara"]
[Date "2024.02.16"]
[Round "1.3"]
[White "Raja Harshit"]
[Black "Cardoso Cardoso, Jose Gabriel"]
[Result "1/2-1/2"]
[ECO "B94"]
[WhiteElo "2508"]
[BlackElo "2477"]
[Annotator "RC"]
[PlyCount "86"]
[EventDate "2024.02.13"]
[EventType "tourn"]
[EventCountry "USA"]
[SourceTitle "playchess.com"]
[Source "ChessBase"]
[SourceQuality "1"]
[TimeControl "5400+30"]

1. e4 {[%emt 0:00:13]} c5 {[%emt 0:00:14]} 2. Nf3 {[%emt 0:00:12]} d6 {[%emt 0:00:15]} 3. d4 {[%emt 0:00:12]} cxd4 {[%emt 0:00:12]} 4. Nxd4 {[%emt 0:00:07]} Nf6 {[%emt 0:00:08]} 5. Nc3 {[%emt 0:00:06]} a6 {[%emt 0:00:31]} 6. Bg5 {[%emt 0:00:19]} Nbd7 {[%emt 0:00:43]} 7. Qe2 {[%emt 0:00:27]} h6 {[%emt 0:00:18]} 8. Bh4 {[%emt 0:00:07]} g6 {[%emt 0:00:10]} 9. f4 {[%emt 0:00:16]} e5 {[%emt 0:00:09]} 10. fxe5 {[%emt 0:00:06]} dxe5 {[%emt 0:00:05]} 11. O-O-O {[%emt 0:02:03]} Bg7 {[%emt 0:00:42]} 12. Nb3 {[%emt 0:10:14]} O-O {[%emt 0:00:32]} 13. Qf3 {[%emt 0:02:19]} b5 {[%emt 0:04:23]} 14. g4 {[%emt 0:04:02]} b4 {[%emt 0:03:55]} 15. Nd5 {[%emt 0:00:38]} g5 {[%emt 0:00:41]} 16. Bf2 {[%emt 0:07:58]} Nxd5 {[%emt 0:02:41]} 17. exd5 {[%emt 0:13:01]} Nf6 {[%emt 0:21:09]} 18. h3 {[%emt 0:00:11]} e4 {[%emt 0:06:36]} 19. Qe3 {[%emt 0:00:58]} Nxd5 {[%emt 0:14:14]} 20. Qxe4 {[%emt 0:00:36]} Qf6 {[%emt 0:00:34]} 21. Bd4 {[%emt 0:00:40]} Qf4+ {[%emt 0:00:16]} 22. Qxf4 {[%emt 0:00:05]} Nxf4 {[%emt 0:00:07]} 23. Bc5 {[%emt 0:04:09]} Re8 {[%emt 0:00:58]} 24. Bxb4 {[%emt 0:01:43]} Bb7 {[%emt 0:01:44]} 25. Rh2 {[%emt 0:00:29]} Bf3 {[%emt 0:12:56]} 26. Re1 {[%emt 0:01:36]} Nd5 {[%emt 0:03:30]} 27. Rf2 {[%emt 0:19:25]} Be5 {[%emt 0:06:28]} 28. Bd2 {[%emt 0:11:32]} Bf4 {[%emt 0:00:54]} 29. Be2 {[%emt 0:00:07]} Be4 {[%emt 0:03:24]} 30. Bc4 {[%emt 0:10:02]} Bg6 {[%emt 0:05:43]} 31. Rxe8+ {[%emt 0:03:53]} Rxe8 {[%emt 0:00:01]} 32. Re2 {[%emt 0:00:06]} Bxd2+ {[%emt 0:05:30]} 33. Nxd2 {[%emt 0:01:05]} Rd8 {[%emt 0:00:27]} 34. a3 {[%emt 0:05:04]} Nf4 {[%emt 0:01:22]} 35. Re3 {[%emt 0:00:08]} Rd6 {[%emt 0:01:49]} 36. b4 {[%emt 0:00:31]} Kg7 {[%emt 0:00:06]} 37. Nb3 {[%emt 0:00:44]} f5 {[%emt 0:00:34]} 38. Nc5 {[%emt 0:00:25]} h5 {[%emt 0:00:17]} 39. Bxa6 {[%emt 0:01:41]} fxg4 {[%emt 0:00:32]} 40. hxg4 {[%emt 0:00:02]} hxg4 {[%emt 0:00:19]} 41. Bf1 {[%emt 0:00:56]} Rf6 {[%emt 0:00:36]} 42. Bc4 {[%emt 0:01:30]} Nh5 {[%emt 0:00:26]} 43. b5 {[%emt 0:01:08]} g3 {[%emt 0:00:20]} 1/2-1/2

[Event "Presidents Day IM-Norm 2024"]
[Site "Santa Clara"]
[Date "2024.02.16"]
[Round "1.4"]
[White "Vatsal Singhania"]
[Black "Stevens, Adam B"]
[Result "1-0"]
[ECO "B92"]
[WhiteElo "2252"]
[BlackElo "1878"]
[Annotator "TA"]
[PlyCount "91"]
[EventDate "2024.02.13"]
[EventType "tourn"]
[EventCountry "USA"]
[SourceTitle "playchess.com"]
[Source "ChessBase"]
[SourceQuality "1"]
[TimeControl "5400+30"]

{[%evp 15,91,0,8,12,23,11,27,28,27,18,18,29,30,16,15,16,26,10,30,6,51,31,78,77,80,84,85,81,137,135,130,143,135,120,152,82,204,197,182,188,163,166,173,102,81,98,77,58,79,102,115,121,112,103,260,260,408,381,359,257,279,243,372,370,371,347,352,349,397,375,406,400,750,339,329,337,651,646]} 1. e4 {[%emt 0:00:02]} c5 {[%emt 0:00:04]} 2. Nf3 {[%emt 0:00:12]} d6 {[%emt 0:00:16]} 3. d4 {[%emt 0:00:04]} cxd4 {[%emt 0:00:09]} 4. Nxd4 {[%emt 0:00:04]} Nf6 {[%emt 0:00:04]} 5. Nc3 {[%emt 0:00:05]} a6 {[%emt 0:00:04]} 6. Be2 {[%emt 1:33:03]} e5 {[%emt 0:02:10]} 7. Nf3 {[%emt 0:00:00]} Be7 {[%emt 0:01:55]} 8. Bg5 {[%emt 0:00:00]} Nbd7 {[%emt 0:01:25]} 9. a4 {[%emt 0:00:00]} h6 {[%emt 0:00:20]} 10. Be3 {[%emt 0:00:00]} Ng4 {[%emt 0:00:53]} 11. Bc1 {[%emt 0:00:00] White has an edge.} Ngf6 {[%emt 0:00:09]} 12. O-O {[%emt 0:00:00]} Nc5 {[%emt 0:00:02]} 13. Nd2 {[%emt 0:00:00]} Be6 {[%emt 0:00:02]} 14. Re1 {[%emt 0:00:00]} O-O {[%emt 0:00:49]} 15. b3 {[%emt 0:00:00]} Rc8 {[%emt 0:03:22][%cal Oc5b3]} 16. Bb2 {[%emt 0:00:00]} Qc7 {[%emt 0:02:03]} 17. Bc4 {[%emt 0:00:00]} Rfd8 {[%emt 0:07:10]} 18. Qf3 {[%emt 0:00:00]} Bxc4 {[%emt 0:03:51]} (18... b6 $14) 19. Nxc4 $16 {[%emt 0:00:00]} Ne6 {[%emt 0:03:36]} 20. a5 {[%emt 0:00:00]} Nd4 {[%emt 0:05:48]} 21. Qd3 {[%emt 0:00:00]} Qc6 {[%emt 0:05:33]} ({Black should try} 21... Re8) 22. Nb6 {[%emt 0:00:00]} Rb8 {[%emt 0:03:47]} 23. Ncd5 {[%emt 0:00:00]} Re8 {[%emt 0:04:43]} 24. c4 {[%emt 0:00:00]} Ne6 {[%emt 0:05:07]} 25. Rad1 {[%emt 0:00:00] White is much more active.} (25. b4 $142 {Hoping for b5.} Nf4 26. Nxf4 exf4 27. Rac1) 25... Rbd8 {[%emt 0:04:35]} (25... Nc5 $16 26. Qf3 Bd8) 26. b4 {[%emt 0:00:00] Strongly threatening b5.} Nf4 {[%emt 0:10:39]} 27. Nxf4 {[%emt 0:00:00]} exf4 {[%emt 0:00:06]} 28. Qf3 {[%emt 0:00:00]} Nd7 {[%emt 0:01:10]} 29. Nxd7 {[%emt 0:00:00]} (29. Qxf4 Nxb6 30. axb6 Qxc4 $17) ({Better is} 29. Nd5 $18) 29... Rxd7 {[%emt 0:00:09]} 30. Qxf4 {[%emt 0:00:00]} Bf8 {[%emt 0:01:36]} 31. Rc1 {[%emt 0:00:00]} (31. Rd4 $5) 31... Rde7 {[%emt 0:01:03]} 32. f3 {[%emt 0:00:00]} b6 {[%emt 0:00:02]} 33. Qf5 {[%emt 0:00:00]} Rb7 {[%emt 0:01:11]} 34. b5 {[%emt 0:00:00][%cal Bb4b5,Bb5a6][%mdl 32]} (34. Kf1 {simplifies} Qc7 35. axb6 Rxb6 36. Qa5) 34... Qc7 {[%emt 0:03:58]} (34... Qc5+ $16 {was necessary.} 35. Qxc5 dxc5) 35. bxa6 $18 {[%emt 0:00:37]} Rbb8 {[%emt 0:00:07]} (35... Ra7 $142 36. Bd4 (36. Qb5 Rb8 $18) 36... bxa5 37. Bxa7 Qxa7+ 38. Kh1 (38. c5 g6 $18) 38... Qxa6) 36. Bd4 {[%emt 0:00:19] [#] And now Qd5 would win.} bxa5 {[%emt 0:00:37]} 37. a7 {[%emt 0:00:34]} Ra8 {[%emt 0:00:38]} 38. Qd5 {[%emt 0:00:07]} Be7 {[%emt 0:03:47]} (38... Rxa7 {keeps fighting.} 39. Rb1 (39. Bxa7 Qxa7+ 40. Kh1 Re5 $18) 39... Rea8 40. Bxa7 Rxa7) 39. Rb1 {[%emt 0:00:17][%cal Bc1b1,Bb1b7,Bb7e7][%mdl 32] Black is weak on the light squares} Rxa7 {[%emt 0:02:35]} 40. Bxa7 {[%emt 0:00:18]} Qxa7+ {[%emt 0:00:01]} 41. Kh1 {[%emt 0:00:06]} a4 {[%emt 0:00:37]} 42. Rb7 {[%emt 0:01:23]} Qf2 {[%emt 0:02:04]} 43. Reb1 {[%emt 0:00:33]} a3 {[%emt 0:01:12]} (43... g5 $142 44. e5 Qc5) 44. h3 {[%emt 0:04:26]} (44. Qc6 $142 Rf8 45. Rxe7) 44... a2 {[%emt 0:02:48]} 45. Ra1 {[%emt 0:00:06]} Rf8 $2 {[%emt 0:00:19] [#]} (45... Kf8 46. Qa5 h5 47. Qxh5 (47. Qxa2 Qc5 $18) 47... Kg8) 46. Rxe7 {[%emt 0:00:56] Weighted Error Value: White=0.33/Black=0.37.  Mistake:       	White=3     	Black=8      Inaccurate:     	---       	Black=1      OK:         	White=17    	Black=12     Best:        	White=2     	---} 1-0

[Event "Presidents Day IM-Norm 2024"]
[Site "Santa Clara"]
[Date "2024.02.16"]
[Round "1.5"]
[White "Guo, Ethan"]
[Black "Liu, Patrick"]
[Result "1-0"]
[ECO "B48"]
[WhiteElo "2099"]
[BlackElo "2130"]
[Annotator "NA RC"]
[PlyCount "119"]
[EventDate "2024.02.13"]
[EventType "tourn"]
[EventCountry "USA"]
[SourceTitle "playchess.com"]
[Source "ChessBase"]
[SourceQuality "1"]
[TimeControl "5400+30"]

1. e4 {[%emt 0:00:02]} c5 {[%emt 0:00:01]} 2. Nf3 {[%emt 0:00:08]} e6 {[%emt 0:00:10]} 3. d4 {[%emt 0:00:04]} cxd4 {[%emt 0:00:03]} 4. Nxd4 {[%emt 0:00:06]} Nc6 {[%emt 0:00:03]} 5. Nc3 {[%emt 0:00:08]} Qc7 {[%emt 0:00:03]} 6. Be3 {[%emt 0:00:10]} a6 {[%emt 0:00:01]} 7. Qf3 {[%emt 0:00:10]} Nf6 {[%emt 0:00:02]} 8. O-O-O {[%emt 0:00:21]} Ne5 {[%emt 0:00:07]} 9. Qg3 {[%emt 0:00:12]} b5 {[%emt 0:00:02]} 10. f4 {[%emt 0:01:13]} Neg4 {[%emt 0:00:04]} 11. Bg1 {[%emt 0:00:49]} h5 {[%emt 0:00:08]} 12. e5 {[%emt 0:01:50]} b4 {[%emt 0:00:03]} 13. Na4 {[%emt 0:01:08]} Nd5 {[%emt 0:00:01]} 14. h3 {[%emt 0:00:51]} Nh6 {[%emt 0:00:04]} 15. Bd3 {[%emt 0:02:22]} Bb7 {[%emt 0:00:06]} 16. f5 {[%emt 0:04:59]} Be7 {[%emt 0:00:10]} 17. fxe6 {[%emt 0:03:03]} dxe6 {[%emt 0:00:23]} 18. Kb1 {[%emt 0:06:10]} h4 {[%emt 0:01:37]} 19. Qxg7 {[%emt 0:02:19]} O-O-O {[%emt 0:01:42]} 20. Bh7 {[%emt 0:02:16]} Bg5 {[%emt 0:39:02]} 21. Qxg5 {[%emt 0:03:28]} Rxh7 {[%emt 0:00:02]} 22. Qxh4 {[%emt 0:05:10]} Qa5 {[%emt 0:05:55]} 23. Nc6 {[%emt 0:07:41]} Nc3+ {[%emt 0:04:18]} 24. Nxc3 {[%emt 0:00:15]} Rxd1+ {[%emt 0:15:29]} 25. Nxd1 {[%emt 0:00:17]} Bxc6 {[%emt 0:00:01]} 26. Ne3 {[%emt 0:02:55]} Qxe5 {[%emt 0:03:20]} 27. Qxb4 {[%emt 0:00:52]} Nf5 {[%emt 0:02:58]} 28. Nxf5 {[%emt 0:02:43]} Qxf5 {[%emt 0:01:06]} 29. Qf8+ {[%emt 0:00:42]} Kb7 {[%emt 0:00:21]} 30. Qe7+ {[%emt 0:00:51]} Kc8 {[%emt 0:00:03]} 31. Bh2 {[%emt 0:01:44]} f6 {[%emt 0:00:15]} 32. Qf8+ {[%emt 0:02:07]} Kd7 {[%emt 0:01:05]} 33. Qd6+ {[%emt 0:00:09]} Ke8 {[%emt 0:00:05]} 34. Qxc6+ {[%emt 0:00:09]} Kf7 {[%emt 0:00:03]} 35. Rd1 {[%emt 0:00:51]} Kg6 {[%emt 0:00:07]} 36. Qxa6 {[%emt 0:00:43]} e5 {[%emt 0:00:12]} 37. Rf1 {[%emt 0:00:39]} Qg5 {[%emt 0:00:29]} 38. Qd3+ {[%emt 0:00:08]} Kh6 {[%emt 0:00:09]} 39. Qg3 {[%emt 0:00:33]} Re7 {[%emt 0:00:58]} 40. Qxg5+ {[%emt 0:00:15]} Kxg5 {[%emt 0:00:05]} 41. a4 {[%emt 0:00:44]} e4 {[%emt 0:00:04]} 42. a5 {[%emt 0:00:36]} e3 {[%emt 0:00:14]} 43. Bf4+ {[%emt 0:00:10]} Kg6 {[%emt 0:00:03]} 44. Re1 {[%emt 0:00:09]} e2 {[%emt 0:00:03]} 45. Kc1 {[%emt 0:00:15]} Kf5 {[%emt 0:00:30]} 46. g3 {[%emt 0:00:19]} Ra7 {[%emt 0:00:21]} 47. b4 {[%emt 0:00:07]} Rb7 {[%emt 0:00:06]} 48. c3 {[%emt 0:00:06]} Rh7 {[%emt 0:00:07]} 49. Rxe2 {[%emt 0:00:09]} Rxh3 {[%emt 0:00:09]} 50. a6 {[%emt 0:00:09]} Rh7 {[%emt 0:00:05]} 51. b5 {[%emt 0:00:02]} Ra7 {[%emt 0:00:05]} 52. Bb8 {[%emt 0:00:08]} Ra8 {[%emt 0:00:20]} 53. a7 {[%emt 0:00:05]} Kg4 {[%emt 0:00:06]} 54. b6 {[%emt 0:00:07]} f5 {[%emt 0:00:04]} 55. b7 {[%emt 0:00:04]} Rxb8 {[%emt 0:00:06]} 56. axb8=Q {[%emt 0:00:10]} Kf3 {[%emt 0:00:06]} 57. Qf4+ {[%emt 0:00:23]} Kxe2 {[%emt 0:00:06]} 58. Kc2 {[%emt 0:00:12]} Ke1 {[%emt 0:00:07]} 59. Kd3 {[%emt 0:00:09]} Kd1 {[%emt 0:00:06]} 60. Qd2# {[%emt 0:00:07]} 1-0

[Event "Presidents Day IM-Norm 2024"]
[Site "Santa Clara"]
[Date "2024.02.16"]
[Round "2.1"]
[White "Yan, Nathan"]
[Black "Liu, Patrick"]
[Result "1/2-1/2"]
[ECO "B48"]
[WhiteElo "2311"]
[BlackElo "2130"]
[Annotator "TA"]
[PlyCount "82"]
[EventDate "2024.02.13"]
[EventType "tourn"]
[EventCountry "USA"]
[SourceTitle "playchess.com"]
[Source "ChessBase"]
[SourceQuality "1"]
[TimeControl "5400+30"]

{[%evp 14,82,29,14,38,-41,-33,-21,-30,-20,-17,-17,-15,-27,-37,-20,-31,-41,-10,-24,0,-26,-26,-52,-18,-47,-13,-81,-61,-160,0,-49,0,0,275,96,89,84,70,66,68,97,93,94,79,-14,81,87,96,93,93,95,96,88,94,75,104,0,0,0,0,-6,0,0,0,0,8,8,8,0,0]} 1. e4 {[%emt 0:00:58]} c5 {[%emt 0:00:09]} 2. Nf3 {[%emt 0:00:31]} e6 {[%emt 0:00:02]} 3. d4 {[%emt 0:00:21]} cxd4 {[%emt 0:00:03]} 4. Nxd4 {[%emt 0:00:25]} Nc6 {[%emt 0:00:02]} 5. Nc3 {[%emt 0:00:02]} Qc7 {[%emt 0:00:02]} 6. Be3 {[%emt 0:00:19]} a6 {[%emt 0:00:02]} 7. Qd2 {[%emt 0:00:07]} Nf6 {[%emt 0:00:02]} 8. O-O-O {[%emt 0:00:11]} Be7 {[%emt 0:00:02] [#]} 9. g4 {[%emt 0:03:09]} Nxg4 $15 {[%emt 0:17:43]} 10. Bf4 {[%emt 0:00:05]} Nge5 $1 {[%emt 0:01:20]} 11. Nxc6 {[%emt 0:00:07]} bxc6 {[%emt 0:01:07]} 12. Rg1 {[%emt 0:00:08]} O-O {[%emt 0:07:29]} 13. Qe3 $1 {[%emt 0:00:46]} f6 {[%emt 0:02:42]} 14. Qg3 {[%emt 0:00:08]} Rf7 {[%emt 0:01:38]} 15. Be2 {[%emt 0:00:03]} Bf8 {[%emt 0:02:10]} 16. Bh5 {[%emt 0:01:27]} Re7 {[%emt 0:04:24]} 17. Be3 {[%emt 0:14:02]} Qa5 {[%emt 0:00:18] Inhibits Bc5.} 18. Be2 {[%emt 0:01:26] Wards off Nc4} d5 {[%emt 0:03:14] ...Rb7 would now be deadly.} 19. f4 {[%emt 0:04:11]} Nf7 {[%emt 0:09:38]} 20. Bf2 {[%emt 0:11:17]} (20. Qh4 $11) 20... Nd6 {[%emt 0:02:50]} 21. Qh4 {[%emt 0:04:46]} (21. Bd4 $15) 21... f5 $2 {[%emt 0:02:21]} ({And not} 21... Nxe4 22. Nxe4 dxe4 23. Kb1 $11) ({Better is} 21... Rb8 $1 $17 {[%cal Rb8b2] aiming for ...Rxb2!} 22. Qxf6 Rf7) 22. exd5 {[%emt 0:11:36]} ({Reject} 22. e5 Ne4 23. Nxe4 fxe4 $15) (22. Bd4 $11) 22... cxd5 {[%emt 0:05:34]} (22... exd5 $15 23. Rd3 g6) 23. Bd4 {[%emt 0:01:42]} Bb7 $2 {[%emt 0:06:15][%mdl 8192] [#]} (23... Rd7 $11) 24. Qxe7 $3 {[%emt 0:12:00][%mdl 512]} Bxe7 $16 {[%emt 0:00:08]} 25. Rxg7+ {[%emt 0:00:04]} Kf8 {[%emt 0:00:02]} 26. Bh5 {[%emt 0:00:12][%cal Od1g1] Rdg1! is the strong threat.} Qd8 $1 {[%emt 0:05:15]} 27. Rdg1 $1 {[%emt 0:02:36][%csl Gg1][%cal Rg7g8] The board is on fire. White has more active pieces.} Bf6 {[%emt 0:00:58] [#]} 28. Bxf6 {[%emt 0:01:30]} (28. Rg8+ Ke7 29. Rxd8 Rxd8 $14) 28... Qxf6 {[%emt 0:00:14]} 29. Rg8+ {[%emt 0:00:02]} Ke7 {[%emt 0:00:16] [#] White must now prevent ...Rxg8.} 30. R1g7+ {[%emt 0:00:03]} Nf7 {[%emt 0:01:17]} 31. Rxf7+ {[%emt 0:00:05]} Qxf7 {[%emt 0:00:07]} 32. Bxf7 {[%emt 0:00:01]} Kxf7 {[%emt 0:00:02]} 33. Rxa8 {[%emt 0:00:20]} Bxa8 {[%emt 0:00:00][%mdl 4096] Endgame. KB-KN} 34. Kd2 {[%emt 0:00:29]} Kf6 {[%emt 0:00:17]} 35. Ke3 {[%emt 0:00:10]} (35. Na4 $16) 35... e5 $11 {[%emt 0:00:11] The position is equal.} 36. fxe5+ {[%emt 0:02:10]} Kxe5 {[%emt 0:00:02]} 37. Ne2 {[%emt 0:01:51] [#]} f4+ $1 {[%emt 0:00:21]} 38. Kf2 {[%emt 0:04:34]} d4 {[%emt 0:00:22] Strongly threatening ...Be4.} 39. Nc1 $1 {[%emt 0:01:30]} a5 {[%emt 0:02:50]} 40. Nd3+ {[%emt 0:04:19]} Kf5 {[%emt 0:00:28]} 41. b3 {[%emt 0:00:50]} Bc6 {[%emt 0:01:44] Weighted Error Value: White=0.23 (precise) /Black=0.34.  Loses game:     	---       	Black=1      Missed win:     	White=1     	---        Mistake:       	White=5     	Black=2      Inaccurate:     	White=1     	Black=4      OK:         	White=14    	Black=8      Best:        	White=3     	Black=5      Strong:       	White=3     	Black=2} 1/2-1/2